Cogmind - Beta 14 @@@ ROGUE MODE // 2024.08.30 @ 08:26:29 Player: Jammed Result: Self-destructed Performance ------------- Evolutions (7) 3500 Regions Visited (23) 4600 Robots Destroyed (543) 2715 Value Destroyed (23972) 23972 Prototype IDs (55) 1100 Alien Tech Used (0) 0 Bonus (11631) 11631 TOTAL SCORE: 47518 Bonus ------- Triggered High Security 500 High Alert Combat Kills 7818 Follower Combat Kills 2299 Awakened Behemoth Slayer 1000 Network Hubs Disabled 200 Met Data Miner 300 Met Imprinter 300 Built Enhanced Grunts 300 Met R17 at Cetus 500 Met R17 at Research 2000 Friendly Fire -3586 Cogmind --------- Core Integrity 750/1300 Matter 11/300 Energy 52/100 System Corruption 5% Temperature Cool (0) Movement Immobile (Siege) Ox1 Location -3/Research Parts ------- > --- POWER (2) -------- (None) > --- PROPULSION (6) --- Centrium Heavy Treads > --- UTILITY (8) ------ Experimental Cooling System Huge Storage Unit Improved Focal Shield Improved Shield Generator Point Defense Array > --- WEAPON (5) ------- Railgun Advanced KE Penetrator Advanced KE Penetrator Advanced KE Penetrator Advanced KE Penetrator > --- INVENTORY (25) --- Centrium Heavy Treads Coolant Network Structural Scanner Advanced Transmission Jammer Centrium Medium Armor Plating Centrium Medium Armor Plating Improved Focal Shield Advanced Component Analysis Suite Hacking Drone Bay (1/1) Phasing AFG Cooled Plasma Rifle Micro-nuke Launcher Hellfire Missile Launcher CR-A16's Behemoth Slayer Peak State ------------ > --- POWER ------------ Heavy Antimatter Reactor Quantum Reactor > --- PROPULSION ------- Heavy Siege Treads Centrium Heavy Treads Centrium Heavy Treads > --- UTILITY ---------- Experimental Cooling System Huge Storage Unit Advanced Transmission Jammer Experimental Reaction Control System Centrium Medium Armor Plating Improved Focal Shield Experimental Thermal Shield Improved Hardlight Generator > --- WEAPON ----------- Railgun Railgun Railgun Railgun Railgun > --- INVENTORY -------- Quantum Reactor Centrium Heavy Treads Coolant Network Structural Scanner Advanced Transmission Jammer Centrium Medium Armor Plating Centrium Medium Armor Plating Improved Focal Shield Improved Shield Generator Advanced Component Analysis Suite Hacking Drone Bay Phasing AFG Cooled Plasma Rifle Advanced KE Penetrator Advanced KE Penetrator Advanced KE Penetrator Advanced KE Penetrator Micro-nuke Launcher Hellfire Missile Launcher CR-A16's Behemoth Slayer [Rating: 174] Favorites ----------- Power Enhanced Fission Core Engine Heavy Deuterium Engine Power Core Enhanced Fission Core Reactor Heavy Antimatter Reactor Propulsion Armored Treads Treads Armored Treads Leg Aluminum Leg Wheel Wheel Flight Unit Improved Flight Unit Utility Huge Storage Unit Device Advanced Sensor Array Storage Huge Storage Unit Processor Core Analyzer Hackware Makeshift System Shield Protection Layered Medium Armor Plating Weapon Gauss Rifle Energy Gun Heavy Laser Energy Cannon Neutron Cannon Ballistic Gun Gauss Rifle Ballistic Cannon Heavy Assault Cannon Launcher Grenade Launcher Special Weapon Mining Laser Piercing Weapon CR-A16's Behemoth Slayer Special Melee Weapon Datajack Build | -11 -10 -9 -9 -9 -8 -8 -7 -7 -7 -7 -6 -6 -6 -6 -6 -5 -5 -4 -4 -4 -4 -4 -3 ------- Run | Yrd Mat Mat Min Exi Min Mat Fac Low Low Zio Pro Fac Low Low Dat Pro Fac Fac Ext Cet Arc Hub Res Slots Evolved 14 | . . 2 . . . 2 2 . . . . 2 . . . . 2 2 . . . . 2 Power 1 | . . . . . . . . . . . . 1 . . . . . . . . . . . Propulsion 4 | . . . . . . 1 1 . . . . . . . . . . . . . . . 2 Utility 6 | . . 1 . . . 1 1 . . . . . . . . . 2 1 . . . . . Weapon 3 | . . 1 . . . . . . . . . 1 . . . . . 1 . . . . . Parts Attached 540 | 2 22 25 7 3 2 45 40 8 10 7 2 32 12 22 4 17 37 106 41 13 3 23 57 Power 31 | . 3 2 . . . 3 5 . . . . 4 . . . . . 6 4 1 . 1 2 Engine 7 | . 3 1 . . . . 3 . . . . . . . . . . . . . . . . Core 13 | . . 1 . . . 3 2 . . . . 4 . . . . . 3 . . . . . Reactor 11 | . . . . . . . . . . . . . . . . . . 3 4 1 . 1 2 Propulsion 69 | . 7 4 1 . . 14 5 3 3 . . 3 . 3 . 4 3 8 4 3 . 2 2 Treads 55 | . 2 . . . . 11 5 3 3 . . 3 . 3 . 4 3 7 4 3 . 2 2 Leg . | . . . . . . . . . . . . . . . . . . . . . . . . Wheel 13 | . 5 3 1 . . 3 . . . . . . . . . . . 1 . . . . . Hover . | . . . . . . . . . . . . . . . . . . . . . . . . Flight 1 | . . 1 . . . . . . . . . . . . . . . . . . . . . Utility 243 | 1 4 4 . . . 14 16 2 5 . 2 11 9 16 . 10 23 63 13 6 2 10 32 Device 191 | 1 2 1 . . . 4 14 . 5 . 1 10 7 13 . 6 21 58 11 4 2 7 24 Storage 5 | . 1 . . . . . . . . . . . . . . 1 . 1 . . . . 2 Processor 12 | . 1 . . . . 1 1 1 . . . . . 2 . . . . 1 . . 2 3 Hackware 3 | . . . . . . . . . . . . . . . . 1 2 . . . . . . Protection 32 | . . 3 . . . 9 1 1 . . 1 1 2 1 . 2 . 4 1 2 . 1 3 Artifact . | . . . . . . . . . . . . . . . . . . . . . . . . Weapon 197 | 1 8 15 6 3 2 14 14 3 2 7 . 14 3 3 4 3 11 29 20 3 1 10 21 Energy Gun 11 | . . 2 . . . . 6 . . . . 1 . . . . 1 . 1 . . . . Energy Cannon 1 | . . . . . . . . . . . . 1 . . . . . . . . . . . Ballistic Gun 136 | 1 6 12 3 1 1 10 5 2 2 4 . 7 2 2 4 3 5 22 13 3 1 7 20 Ballistic Cannon 2 | . . . . . . 1 . . . . . 1 . . . . . . . . . . . Launcher 23 | . . . 2 1 1 3 3 1 . 1 . 3 . . . . . 6 1 . . . 1 Special Weapon 3 | . 2 1 . . . . . . . . . . . . . . . . . . . . . Impact Weapon . | . . . . . . . . . . . . . . . . . . . . . . . . Slashing Weapon . | . . . . . . . . . . . . . . . . . . . . . . . . Piercing Weapon 14 | . . . . . . . . . . 1 . 1 1 1 . . 5 1 1 . . 3 . Special Melee Weapon 7 | . . . 1 1 . . . . . 1 . . . . . . . . 4 . . . . Unidentified Prototypes 23 | . . 3 . . . . 2 . . 1 . 6 . . . . 1 1 1 4 . . 4 Corrupted Parts 6 | . . . . . . . . . . . . . . . . 1 . . 1 1 . 3 . System Corruption 41 | . . . . . . . . . . . . . . . . 8 . . 7 1 . 25 . Parts Lost 104 | . 4 4 . . . 27 7 3 7 1 . 5 3 2 . . . 13 11 1 . . 16 Power 10 | . . 1 . . . 3 . . . . . . . . . . . 2 1 . . . 3 Propulsion 29 | . 4 1 . . . 9 2 2 3 . . 1 . 1 . . . . 3 1 . . 2 Utility 36 | . . 1 . . . 6 3 1 2 . . 2 2 . . . . 8 5 . . . 6 Weapon 29 | . . 1 . . . 9 2 . 2 1 . 2 1 1 . . . 3 2 . . . 5 Highest Loss Streak 13 | . 2 3 . . . 11 3 2 5 1 . 2 2 1 . . . 4 5 1 . . 13 To Critical Strikes 3 | . . . . . . . . . . 1 . . . . . . . . 1 1 . . . Average Slot Usage (%) 97 | . 95 98 100 100 100 94 98 99 99 99 100 98 99 99 77 100 99 94 96 81 89 87 83 Engine 2 | . 14 8 . . . . 1 7 7 7 7 1 . . . . . . . . . . . Core 5 | . . 2 11 11 11 7 5 . . . . 11 13 13 13 13 11 8 3 . . . . Reactor 1 | . . . . . . . . . . . . . . . . . . 1 5 10 10 10 8 Treads 20 | . . . . . . 19 29 30 29 30 30 25 26 25 26 26 23 16 20 11 10 10 13 Wheel 3 | . 14 21 22 22 22 7 . . . . . . . . . . . . . . . . . Device 17 | . 13 10 11 11 11 9 20 17 14 15 16 12 13 12 13 13 20 25 27 26 31 30 27 Storage 7 | . 14 11 11 11 11 9 7 7 7 7 7 6 6 6 6 6 5 5 5 5 5 5 4 Processor 3 | . . . . . . . 2 4 7 7 7 6 6 6 6 6 5 5 4 . . . . Protection 6 | . . 9 11 11 11 16 6 6 7 7 6 5 5 6 6 6 5 4 1 3 5 4 3 Ballistic Gun 24 | . 27 32 32 23 32 24 15 22 22 19 23 25 25 25 4 26 22 25 24 24 26 25 22 Peak Build Rating 174 | 7 9 18 18 18 18 27 44 50 54 56 56 74 79 79 79 82 95 128 127 148 149 152 174 Average Rating 67 | 6 7 15 17 17 17 21 39 46 51 54 56 66 74 75 64 79 91 115 121 130 148 147 166 On Entrance 63 | 6 7 9 18 18 18 18 26 42 50 51 56 56 70 76 79 79 80 92 118 123 148 149 142 Naked Turns . | . . . . . . . . . . . . . . . . . . . . . . . . Heaviest Build 176 | 11 92 100 100 100 100 112 114 115 114 112 112 138 139 139 139 140 143 172 176 174 165 165 172 Greatest Support 230 | 20 40 22 22 22 22 63 86 88 93 93 93 93 90 108 108 110 110 124 124 160 160 160 230 Greatest Overweight (x) 11 | . 9 9 4 4 4 11 1 1 1 1 1 1 1 1 1 1 1 5 1 1 1 1 . Average Overweight (x) 1 | . 3 4 4 4 4 7 1 1 1 1 1 1 1 1 1 1 1 1 1 . . . . Largest Inventory Capacity 25 | 8 25 25 25 25 25 25 25 25 25 25 25 25 25 25 25 25 25 25 25 25 25 25 25 Average Capacity 24 | 8 20 25 25 25 25 25 25 25 25 25 25 25 25 25 25 25 25 25 25 25 25 25 25 Most Carried 25 | 7 14 25 25 25 25 25 25 25 23 25 25 25 25 25 25 25 25 25 25 25 25 25 25 Average Carried 23 | 6 8 20 25 25 25 22 24 23 21 24 25 24 24 24 25 24 24 23 23 22 24 24 23 Final Capacity 25 | 8 25 25 25 25 25 25 25 25 25 25 25 25 25 25 25 25 25 25 25 25 25 25 25 Final Carried 25 | 7 14 25 25 25 25 23 25 23 22 25 25 25 25 25 25 24 24 23 22 24 24 25 16 Class Distribution -------------------- 43% | Scavenger-Tank 26% | Tank 13% | Gunner 9% | Mutant 4% | Scavenger-Gunner Dominant Class ---------------- Mutant | -10/Materials Tank | -9/Materials Tank | -9/Mines Mutant | -9/Exiles Tank | -8/Mines Tank | -8/Materials Tank | -7/Factory Tank | -7/Lower Caves Gunner | -7/Lower Caves Gunner | -7/Zion Gunner | -6/Proximity Caves Tank | -6/Factory Scavenger-Tank | -6/Lower Caves Scavenger-Tank | -6/Lower Caves Scavenger-Mutant | -6/Data Miner Scavenger-Tank | -5/Proximity Caves Scavenger-Tank | -5/Factory Scavenger-Tank | -4/Factory Scavenger-Tank | -4/Extension Scavenger-Tank | -4/Cetus Scavenger-Tank | -4/Archives Scavenger-Tank | -4/Hub_04(d) Scavenger-Tank | -3/Research Resources | -11 -10 -9 -9 -9 -8 -8 -7 -7 -7 -7 -6 -6 -6 -6 -6 -5 -5 -4 -4 -4 -4 -4 -3 ----------- Run | Yrd Mat Mat Min Exi Min Mat Fac Low Low Zio Pro Fac Low Low Dat Pro Fac Fac Ext Cet Arc Hub Res Matter Collected 21831 | 254 606 892 133 256 163 1914 1193 551 774 88 222 1248 125 651 . 561 1213 5381 2348 311 488 702 1757 Remotely 4227 | . . . . . . 852 165 . 319 . . 543 . . . . 477 1775 96 . . . . Salvage Created 25845 | 187 745 1058 131 . 171 2107 1325 179 543 60 415 1796 92 407 . 257 1297 6030 3982 109 507 1416 3031 Parts 1276 | 19 59 83 7 . 7 111 75 11 18 1 19 104 5 25 . 20 68 286 170 4 25 55 104 Haulers Intercepted 12 | . 2 4 . . . . . . . . . 1 . . . . . 2 . . . 2 1 Recyclers Shooed 17 | . . . . . . . 1 . . . . 1 . . . . . 15 . . . . . Parts Field Recycled . | . . . . . . . . . . . . . . . . . . . . . . . . Retrieved Matter . | . . . . . . . . . . . . . . . . . . . . . . . . Parts Self-Destructed 106 | . . . . . . . . 9 28 . 20 . 3 22 . 24 . . . . . . . Prevented 5 | . . . . . . . . . . . . . . . . 5 . . . . . . . Kills | -11 -10 -9 -9 -9 -8 -8 -7 -7 -7 -7 -6 -6 -6 -6 -6 -5 -5 -4 -4 -4 -4 -4 -3 ------- Run | Yrd Mat Mat Min Exi Min Mat Fac Low Low Zio Pro Fac Low Low Dat Pro Fac Fac Ext Cet Arc Hub Res Combat Hostiles Destroyed 417 | . 15 27 8 . 3 37 32 4 11 1 9 36 1 10 . 5 22 93 59 1 2 7 34 Guns 334 | . 15 27 2 . 1 31 24 2 11 1 9 22 . 10 . 5 21 70 40 1 2 6 34 Cannons 2 | . . . . . . . 2 . . . . . . . . . . . . . . . . AOE 77 | . . . 6 . 2 6 6 2 . . . 14 . . . . . 22 19 . . . . Classes Destroyed 26 | 2 5 1 . . . 7 1 2 . . 1 3 . . . 1 . . 1 . . . 2 Worker 28 | . 2 . . . . 5 1 . . . . 4 . . . . . 9 . . . 5 2 Builder 25 | . . . . . . 3 . . . . . 3 . . . . 2 13 2 . . 1 1 Tunneler 11 | 6 . . . . . 1 1 . . . . . . . . . 1 1 . . . 1 . Hauler 12 | . 2 4 . . . . . . . . . 1 . . . . . 2 . . . 2 1 Recycler 17 | 1 1 . . . . 1 . . . . . 1 . . . . . 5 2 . . 4 2 Minesweeper 1 | . . . . . . . . . . . . . . . . 1 . . . . . . . Mechanic 4 | . . . . . . . . . . . . 1 . . . . 1 1 1 . . . . Operator 12 | . . . . . . 1 1 . . . . . . . . . . . 1 . 9 . . Drone 2 | . . . . . . . . . . . 2 . . . . . . . . . . . . Watcher 23 | . 3 4 . . . 5 1 . . . . 2 . . . . . 3 . 1 . 1 3 Swarmer 61 | . 6 15 8 . . . 5 3 3 . 2 3 . 6 . 2 4 4 . . . . . Saboteur 4 | . . . . . . . . . . . . 1 . . . . . 1 2 . . . . Grunt 186 | . 9 7 . . 3 26 18 . 7 . 4 14 . . . . 11 41 27 . . 1 18 Brawler 13 | . . . . . . 2 . . 1 . . . . . . . . 2 5 . . . 3 Duelist 12 | . . . . . . 1 . . . . . . . . . . . 9 1 . . . 1 Protector 8 | . . . . . . . . . . . . 1 . . . . . 4 2 . . . 1 Sentry 37 | . . 5 . . . 4 3 . . . 1 2 . 1 . . 1 3 13 . 2 1 1 Demolisher 4 | . . . . . . . . . . . . . . . . . . . 2 . . . 2 Specialist 11 | . . . . . . 2 . . . . . 2 . . . . . 2 4 . . 1 . Hunter 24 | . . . . . . 1 . . . 1 . 6 . 2 . 3 . 8 . . . . 3 Programmer 41 | . . . . . . . 6 . . . . 6 . . . . 5 17 3 . . 3 1 Heavy 3 | . . . . . . 1 . . . . . 1 . . . . . 1 . . . . . Behemoth 5 | . . . . . . . . 1 . . . . 1 . . . 1 1 . . . 1 . Cetus Guard 1 | . . . . . . . . . . . . . . . . . . . . 1 . . . Striker 3 | . . . . . . . . . . . . . . . . . . . . . . . 3 Executioner 1 | . . . . . . . . . . . . . . . . . . . . . . . 1 Wasp 1 | . . . . . . . . . . . 1 . . . . . . . . . . . . Thug 1 | . . . . . . . . . . . . . . . . . . . 1 . . . . Savage 1 | . . . . . . . . . . . . . . . . . . . 1 . . . . Butcher 1 | . . . . . . . . . . . . . . . . . . . 1 . . . . Mutant 3 | . . . . . . . . 1 1 . . . . 1 . . . . . . . . . Best Kill Streak 25 | 4 5 3 4 . 2 10 6 3 8 1 3 17 1 3 . 2 5 13 25 2 6 8 7 Combat Bots Only 23 | . 3 3 4 . 2 7 6 3 8 1 3 12 1 3 . 2 4 13 23 1 1 1 7 Max Kills in Single Turn 7 | 1 2 2 2 . 1 2 2 2 1 1 2 4 1 2 . 1 2 4 7 1 1 7 3 Gunslinging 1 | . . 1 . . . . 1 . . . 1 1 . 1 . . 1 1 1 . . . 1 Exploded 6 | . . . 2 . 1 2 2 2 . . . 4 . . . . . 4 6 . . . . Melee . | . . . . . . . . . . . . . . . . . . . . . . . . Uniques/NPCs Destroyed 2 | . . . 1 . . . . . . . . . . . . . . . . 1 . . . YI-UF0 (-9/Mines) A7 (-4/Cetus) Combat | -11 -10 -9 -9 -9 -8 -8 -7 -7 -7 -7 -6 -6 -6 -6 -6 -5 -5 -4 -4 -4 -4 -4 -3 -------- Run | Yrd Mat Mat Min Exi Min Mat Fac Low Low Zio Pro Fac Low Low Dat Pro Fac Fac Ext Cet Arc Hub Res Hostile Shots Fired 2927 | . 76 103 13 . 17 251 210 67 108 12 27 220 45 85 . 79 114 697 270 24 12 91 406 Missed 838 | . 16 28 6 . 6 65 68 24 34 3 10 73 13 34 . 10 36 214 73 10 1 30 84 Intercepted 3 | . . . . . . . . . . . . . . . . . . . . . . . 3 Damage Taken 27262 | . 730 772 65 . 209 3716 1710 547 955 163 258 1704 470 260 . 395 770 4892 3231 225 148 793 5249 Core 2374 | . 133 89 8 . 5 524 128 . 48 . . 139 10 21 . 36 59 231 322 23 . 48 550 Absorbed by Shields 8605 | . . . . . . . 206 196 265 . . 776 82 301 . 425 685 3036 1058 132 72 66 1305 Reduced by Siege Mode 381 | . . . . . . . . . . . . . . . . . . 90 3 7 15 . 266 Redirected to Shielding 5 | . . . . . . 5 . . . . . . . . . . . . . . . . . Ignored by Resistances 4892 | . . . . . . . . . . . . . . 127 . 209 264 1578 904 136 83 226 1365 Regen/Repaired (Parts) 2341 | . 92 115 . . . 77 226 . . . . 535 . . . . 770 . . . . . 526 Core Remaining (%) 64 | 100 46 . . . 74 4 . . . . 74 . . . . 75 94 . . . . 45 . Volleys Fired 1063 | 17 76 83 19 . 12 160 92 21 26 1 16 61 . 20 . 21 47 177 92 8 21 25 68 Largest 5 | 2 2 3 3 . 3 3 3 3 3 2 3 4 . 4 . 4 4 5 5 5 5 5 5 Hottest 207 | 40 100 100 69 . 69 71 207 75 78 53 84 112 . 119 . 119 112 169 167 165 165 165 175 Shots Fired 3626 | 34 145 244 47 . 28 419 244 58 80 2 48 217 1 78 . 88 182 736 389 41 103 112 330 Gun 3544 | 34 138 242 43 . 24 405 226 57 80 2 48 208 1 78 . 88 182 718 384 41 103 112 330 Cannon 9 | . . . . . . . 9 . . . . . . . . . . . . . . . . Launcher 64 | . . . 4 . 4 14 9 1 . . . 9 . . . . . 18 5 . . . . Special 9 | . 7 2 . . . . . . . . . . . . . . . . . . . . . Kinetic 3473 | 34 138 242 43 . 24 405 158 57 80 2 48 208 1 78 . 88 180 718 383 41 103 112 330 Thermal 89 | . 7 2 . . . . 77 . . . . . . . . . 2 . 1 . . . . Explosive 64 | . . . 4 . 4 14 9 1 . . . 9 . . . . . 18 5 . . . . Electromagnetic . | . . . . . . . . . . . . . . . . . . . . . . . . Robot Hit Streak 31 | 6 17 21 7 . 7 20 16 11 12 1 11 8 . 9 . 10 19 25 16 6 22 20 31 Robot Miss Streak 8 | 3 3 5 3 . 3 5 6 3 4 1 3 7 . 3 . 4 2 8 7 6 4 7 4 Penetration Max 2 | . . . . . . . . . 1 . 1 1 . . . . 1 2 1 1 1 1 2 Secondary Targets 83 | . 2 2 . . . 4 5 . 3 . 2 5 . 3 . . 7 22 12 1 . . 15 Max Gunslinging Chain 2 | . 1 2 . . . 1 2 . 1 . 1 1 . 1 . . 2 1 1 1 . . 1 Shots Hit Robots 2358 | 21 85 137 29 5 18 265 167 41 56 6 27 121 6 51 . 46 120 505 255 21 57 59 260 Core Hits 1289 | 12 41 47 12 . 8 125 75 14 25 1 18 114 2 24 . 18 55 294 192 12 32 42 126 Critical Kills 31 | . . . . . . 2 . . 1 . 1 4 . . . . 1 10 8 . 3 . 1 Critical Parts Destroyed 51 | . . . 1 . . 1 3 . 1 . . 1 . . . . 2 18 13 . 1 . 10 Critical Strikes 92 | . . . 1 . . 3 4 . 2 . 1 5 1 . . . 3 28 25 . 5 . 14 Burn 1 | . . . . . . . 1 . . . . . . . . . . . . . . . . Destroy 90 | . . . 1 . . 3 3 . 2 . 1 5 . . . . 3 28 25 . 5 . 14 Impale 1 | . . . . . . . . . . . . . 1 . . . . . . . . . . Melee Attacks 76 | . . . 1 5 . . . . . 6 . 1 7 1 . . 7 2 42 . . 4 . Impact . | . . . . . . . . . . . . . . . . . . . . . . . . Slashing . | . . . . . . . . . . . . . . . . . . . . . . . . Piercing 25 | . . . . . . . . . . 1 . 1 7 1 . . 7 2 2 . . 4 . Sneak Attacks 51 | . . . 1 5 . . . . . 5 . . . . . . . . 40 . . . . Combat Hostiles . | . . . . . . . . . . . . . . . . . . . . . . . . Follow-up Attacks . | . . . . . . . . . . . . . . . . . . . . . . . . Damage Inflicted 71680 | 177 942 1995 825 . 422 5004 4219 829 1077 17 623 5840 162 910 . 670 2931 20574 12285 784 1532 2454 7408 Guns 52990 | 177 942 1995 390 . 242 4090 3047 727 1076 17 623 2812 . 910 . 670 2879 13055 7906 784 1532 1708 7408 Cannons 295 | . . . . . . . 295 . . . . . . . . . . . . . . . . Explosions 18214 | . . . 435 . 180 914 877 102 . . . 3028 . . . . 52 7519 4379 . . 728 . Melee 162 | . . . . . . . . . . . . . 162 . . . . . . . . . . Ramming 19 | . . . . . . . . . 1 . . . . . . . . . . . . 18 . Kinetic 52158 | 177 942 1995 390 . 242 4090 2215 727 1076 17 623 2812 . 910 . 670 2879 13055 7906 784 1532 1708 7408 Thermal 1127 | . . . . . . . 1127 . . . . . . . . . . . . . . . . Explosive 17486 | . . . 435 . 180 914 877 102 . . . 3028 . . . . 52 7519 4379 . . . . Electromagnetic 728 | . . . . . . . . . . . . . . . . . . . . . . 728 . Impact . | . . . . . . . . . . . . . . . . . . . . . . . . Slashing . | . . . . . . . . . . . . . . . . . . . . . . . . Piercing 162 | . . . . . . . . . . . . . 162 . . . . . . . . . . Highest Corruption 57 | . . . . . . . 9 9 9 9 . 5 5 5 5 13 3 20 34 35 35 57 5 Average Corruption 10 | . . . . . . . 5 9 9 9 . 4 5 5 5 5 2 7 24 34 33 29 5 Corruption Purged 7 | . . . . . . . . . . . . . . . . . . . . . 7 . . Corruption Blocked . | . . . . . . . . . . . . . . . . . . . . . . . . Effects 819 | . . . . . . . 82 73 76 6 . 7 32 77 6 74 23 81 145 37 37 60 3 Message Errors 182 | . . . . . . . 13 16 16 . . 3 5 21 . 13 4 21 28 14 15 12 1 Matter Fused 174 | . . . . . . . 22 16 16 3 . 1 7 16 3 18 6 19 26 6 6 9 . Heat Flow Errors 93 | . . . . . . . 11 6 8 1 . 1 4 8 . 11 3 4 21 3 3 9 . Energy Discharges 97 | . . . . . . . 13 9 15 . . . 5 7 1 11 2 8 15 2 2 6 1 Parts Rejected 8 | . . . . . . . . 1 . . . . . 2 . 2 . 1 1 . 1 . . Parts Fused 9 | . . . . . . . . 2 1 . . 1 . 2 . . 1 . 1 . . 1 . Data Loss (minor) 103 | . . . . . . . 13 10 9 1 . 1 6 8 2 8 2 10 20 4 2 7 . Data Loss (major) 40 | . . . . . . . 1 5 7 1 . . 3 6 . 1 . 4 5 3 2 2 . Misfires 37 | . . . . . . . 2 3 3 . . . 1 5 . 6 2 3 6 3 2 1 . Alerts 16 | . . . . . . . 1 3 . . . . 1 1 . 2 1 2 2 . . 3 . Weapon Failures 60 | . . . . . . . 6 2 1 . . . . 1 . 2 2 9 20 2 4 10 1 Overload Shots 3 | . . . . . . . . . . . . . . . . . 2 . 1 . . . . Overflow Damage 554 | . . . 13 . . . 3 . . . . 68 . . . . . 296 174 . . . . Projectiles . | . . . . . . . . . . . . . . . . . . . . . . . . Explosions 554 | . . . 13 . . . 3 . . . . 68 . . . . . 296 174 . . . . Melee . | . . . . . . . . . . . . . . . . . . . . . . . . Knockbacks 4 | . . . . . . . 4 . . . . . . . . . . . . . . . . Impact . | . . . . . . . . . . . . . . . . . . . . . . . . Kinetic 4 | . . . . . . . 4 . . . . . . . . . . . . . . . . Secondary . | . . . . . . . . . . . . . . . . . . . . . . . . Self-Inflicted Damage 274 | . . . 6 . 10 . 38 . . . . . . . . . . 120 . . . 100 . Shots 6 | . . . 1 . 1 . 1 . . . . . . . . . . 2 . . . 1 . Rammed 6 | . . . . . . . . . 2 . . . . . . . . . . . . 4 . Targets Rammed 6 | . . . . . . . . . 2 . . . . . . . . . . . . 4 . Kicked . | . . . . . . . . . . . . . . . . . . . . . . . . Crushed . | . . . . . . . . . . . . . . . . . . . . . . . . Highest Temperature 427 | . 96 140 129 . 150 259 259 179 274 243 109 369 199 299 . 286 270 263 427 221 246 255 87 Average Temperature 73 | . 16 23 59 . 66 61 90 78 113 109 42 100 83 98 . 107 84 72 89 73 89 45 23 Received Heat Transfer 5926 | . 399 186 . . 117 1494 546 63 402 . 66 222 66 29 . . 170 437 718 18 12 51 930 Effects 21 | . . . . . . 2 1 . . . . . . 2 . 7 . 3 6 . . . . Shutdowns 2 | . . . . . . . . . . . . . . . . . . . 2 . . . . Energy Bleed 6 | . . . . . . 2 1 . . . . . . 2 . . . 1 . . . . . Interference 12 | . . . . . . . . . . . . . . . . 7 . 2 3 . . . . Short Circuit 1 | . . . . . . . . . . . . . . . . . . . 1 . . . . Siege Activations 34 | . . . . . . . . . . . . . . . . . . 14 1 2 4 1 12 Total Turns 657 | . . . . . . . . . . . . . . . . . . 252 8 14 118 27 238 Longest Duration 96 | . . . . . . . . . . . . . . . . . . 50 8 11 96 27 41 Robots Corrupted . | . . . . . . . . . . . . . . . . . . . . . . . . Combat Hostiles . | . . . . . . . . . . . . . . . . . . . . . . . . Parts Fried 1 | . . . . . . . . . . . . . . . . . . . . . . 1 . Impact Corruptions . | . . . . . . . . . . . . . . . . . . . . . . . . Robots Melted . | . . . . . . . . . . . . . . . . . . . . . . . . Combat Hostiles . | . . . . . . . . . . . . . . . . . . . . . . . . Parts Melted 9 | . . . . . . . 6 . . . . . . . . . 1 . . . . . 2 Heat Transferred 2220 | . . . . . . . 2220 . . . . . . . . . . . . . . . . Parts Sabotaged . | . . . . . . . . . . . . . . . . . . . . . . . . Parts Stolen . | . . . . . . . . . . . . . . . . . . . . . . . . Parts Stripped . | . . . . . . . . . . . . . . . . . . . . . . . . Power Chain Reactions . | . . . . . . . . . . . . . . . . . . . . . . . . Alert | -11 -10 -9 -9 -9 -8 -8 -7 -7 -7 -7 -6 -6 -6 -6 -6 -5 -5 -4 -4 -4 -4 -4 -3 ------- Run | Yrd Mat Mat Min Exi Min Mat Fac Low Low Zio Pro Fac Low Low Dat Pro Fac Fac Ext Cet Arc Hub Res Peak Influence 2548 | 35 177 225 173 . 95 455 414 . . . . 863 . . . . 542 2381 2548 1542 841 549 723 Initial 1426 | . 22 2 70 . . . 186 . . . . 300 . . . . 18 265 1166 1426 573 224 288 Average 444 | 23 49 96 78 . 39 311 260 . . . . 302 . . . . 164 1010 1233 1464 716 328 439 Maximum Alert Level 5 | . . 1 . . . 2 2 . . . . 3 . . . . 2 5 5 4 3 2 3 Low Security (%) 38 | 100 100 96 100 . 100 8 24 . . . . 38 . . . . 64 8 . . . . . Level 1 31 | . . 3 . . . 72 75 . . . . 43 . . . . 25 22 . . . 74 50 Level 2 10 | . . . . . . 18 . . . . . 3 . . . . 9 16 7 . 48 25 48 Level 3 7 | . . . . . . . . . . . . 14 . . . . . 9 40 . 51 . 1 Level 4 6 | . . . . . . . . . . . . . . . . . . 16 25 100 . . . Level 5 5 | . . . . . . . . . . . . . . . . . . 26 25 . . . . High Security . | . . . . . . . . . . . . . . . . . . . 1 . . . . Max Security . | . . . . . . . . . . . . . . . . . . . . . . . . Squads Dispatched 90 | . 2 4 . . . 5 13 . 1 . . 14 . . . . 11 22 11 . . 5 2 Investigation 13 | . . . . . . 2 3 . . . . 1 . . . . 3 1 1 . . . 2 Extermination 26 | . . . . . . . 6 . . . . 5 . . . . 4 9 . . . 2 . Reinforcement 19 | . 2 4 . . . 3 . . . . . 3 . . . . 1 3 . . . 3 . Assault 23 | . . . . . . . . . 1 . . . . . . . 3 9 10 . . . . Garrison 9 | . . . . . . . 4 . . . . 5 . . . . . . . . . . . Intercept . | . . . . . . . . . . . . . . . . . . . . . . . . Searches Triggered . | . . . . . . . . . . . . . . . . . . . . . . . . Construction Impeded 4 | . . . . . . . . . . . . 1 . . . . 1 1 . . . 1 . Haulers Reinforced 1 | . . . . . . . . . . . . 1 . . . . . . . . . . . Active Scanning Responses . | . . . . . . . . . . . . . . . . . . . . . . . . Cargo Convoy Interrupts 1 | . . . . . . . . . . . . 1 . . . . . . . . . . . Stealth | -11 -10 -9 -9 -9 -8 -8 -7 -7 -7 -7 -6 -6 -6 -6 -6 -5 -5 -4 -4 -4 -4 -4 -3 --------- Run | Yrd Mat Mat Min Exi Min Mat Fac Low Low Zio Pro Fac Low Low Dat Pro Fac Fac Ext Cet Arc Hub Res Distress Signals 29 | . 3 2 . . . 5 4 . . . . 2 . . . . 1 1 4 2 . . 5 Communications Jammed 126 | . . . . . . . . . . . . . . . . . 2 89 . . . 1 34 Distress Signals 118 | . . . . . . . . . . . . . . . . . 2 81 . . . 1 34 Times Spotted 624 | . 24 38 7 . 3 58 46 4 16 1 12 52 1 13 . 10 31 117 111 12 6 17 45 Peak Tracking Total 23 | . 6 6 4 . 3 5 6 3 9 1 3 11 1 3 . 5 6 12 23 5 2 3 10 Tactical Retreats 32 | . 3 1 . . . 3 1 . 2 . 1 3 . 1 . 1 1 7 7 . . . 1 Traps | -11 -10 -9 -9 -9 -8 -8 -7 -7 -7 -7 -6 -6 -6 -6 -6 -5 -5 -4 -4 -4 -4 -4 -3 ------- Run | Yrd Mat Mat Min Exi Min Mat Fac Low Low Zio Pro Fac Low Low Dat Pro Fac Fac Ext Cet Arc Hub Res Traps Triggered 24 | . . . . . . 1 3 . . . . . . . . . . 6 3 . . 7 4 Indirectly 3 | . . . . . . . . . . . . . . . . . . . . . . 3 . Trap Hack Attempts . | . . . . . . . . . . . . . . . . . . . . . . . . Triggered . | . . . . . . . . . . . . . . . . . . . . . . . . Disarmed . | . . . . . . . . . . . . . . . . . . . . . . . . Reprogrammed . | . . . . . . . . . . . . . . . . . . . . . . . . Reused . | . . . . . . . . . . . . . . . . . . . . . . . . Traps Extracted . | . . . . . . . . . . . . . . . . . . . . . . . . Installed . | . . . . . . . . . . . . . . . . . . . . . . . . Triggered . | . . . . . . . . . . . . . . . . . . . . . . . . Machines | -11 -10 -9 -9 -9 -8 -8 -7 -7 -7 -7 -6 -6 -6 -6 -6 -5 -5 -4 -4 -4 -4 -4 -3 ---------- Run | Yrd Mat Mat Min Exi Min Mat Fac Low Low Zio Pro Fac Low Low Dat Pro Fac Fac Ext Cet Arc Hub Res Machines Disabled 43 | . . . . . . . . . . . . 4 . 2 . . 6 16 5 . 5 3 2 Max in Single Turn 4 | . . . . . . . . . . . . 1 . 1 . . 3 4 1 . 2 3 1 Garrison Access 5 | . . . . . . 1 . . . . . . . . . . 2 1 . . . . 1 Network Hub 1 | . . . . . . . . . . . . . . . . . . . . . . 1 . Machines Repaired . | . . . . . . . . . . . . . . . . . . . . . . . . Machines Dismantled . | . . . . . . . . . . . . . . . . . . . . . . . . Machines Sabotaged . | . . . . . . . . . . . . . . . . . . . . . . . . Overloaded Fab Kills . | . . . . . . . . . . . . . . . . . . . . . . . . Hacking | -11 -10 -9 -9 -9 -8 -8 -7 -7 -7 -7 -6 -6 -6 -6 -6 -5 -5 -4 -4 -4 -4 -4 -3 --------- Run | Yrd Mat Mat Min Exi Min Mat Fac Low Low Zio Pro Fac Low Low Dat Pro Fac Fac Ext Cet Arc Hub Res Machines Accessed 64 | . 7 6 . 1 . 9 10 . 1 . . 3 1 . 4 . 10 5 3 . . 1 3 Terminals 35 | . 6 5 . . . 5 7 . . . . 1 . . . . 3 3 3 . . 1 1 Fabricators 7 | . . . . . . . 1 . . . . 1 . . . . 3 . . . . . 2 Repair Stations 7 | . 1 1 . . . 1 . . . . . 1 . . . . 2 1 . . . . . Recycling Units 1 | . . . . . . 1 . . . . . . . . . . . . . . . . . Scanalyzers 3 | . . . . . . 1 2 . . . . . . . . . . . . . . . . Garrison Access 4 | . . . . . . 1 . . . . . . . . . . 2 1 . . . . . Total Hacks 210 | . 19 26 . 4 . 30 25 . 1 . . 10 1 . 27 . 33 16 10 . . 2 6 Successful 131 | . 10 16 . 4 . 17 14 . 1 . . 8 1 . 27 . 19 7 5 . . . 2 Failed 78 | . 8 10 . . . 13 11 . . . . 2 . . . . 14 9 5 . . 2 4 Catastrophic 15 | . . 2 . . . 3 4 . . . . 1 . . . . 3 . 1 . . . 1 Database Lockouts 1 | . 1 . . . . . . . . . . . . . . . . . . . . . . Manual 63 | . 11 7 . . . 12 7 . . . . . . . . . 9 6 8 1 . 2 . Terminals 102 | . 17 19 . . . 13 15 . . . . 2 . . . . 10 12 10 . . 2 2 Fabricators 17 | . . . . . . . 3 . . . . 3 . . . . 7 . . . . . 4 Repair Stations 33 | . 2 7 . . . 3 . . . . . 5 . . . . 13 3 . . . . . Recycling Units 1 | . . . . . . 1 . . . . . . . . . . . . . . . . . Scanalyzers 17 | . . . . . . 10 7 . . . . . . . . . . . . . . . . Garrison Access 7 | . . . . . . 3 . . . . . . . . . . 3 1 . . . . . Terminal Hacks 61 | . 6 8 . 4 . 2 3 . 1 . . 1 1 . 27 . 2 2 4 . . . . Record 15 | . . . . 4 . . . . . . . . . . 11 . . . . . . . . Part Schematic 10 | . . . . . . 1 1 . . . . . . . 8 . . . . . . . . Robot Schematic 6 | . 1 . . . . . . . . . . . . . 5 . . . . . . . . Robot Analysis 4 | . 1 3 . . . . . . . . . . . . . . . . . . . . . Prototype ID Bank 3 | . . . . . . . . . . . . . . . 3 . . . . . . . . Open Door 2 | . . . . . . . . . 1 . . . 1 . . . . . . . . . . Branch Access Points 1 | . . . . . . . 1 . . . . . . . . . . . . . . . . Alert Level 5 | . . 1 . . . 1 1 . . . . 1 . . . . . . 1 . . . . Unreport Threat 4 | . . 1 . . . . . . . . . . . . . . . 1 2 . . . . Locate Traps 1 | . 1 . . . . . . . . . . . . . . . . . . . . . . Dispatch Records 1 | . . 1 . . . . . . . . . . . . . . . . . . . . . Maintenance Status 1 | . . . . . . . . . . . . . . . . . 1 . . . . . . Hauler Manifests 3 | . 1 1 . . . . . . . . . . . . . . 1 . . . . . . Zone Layout 5 | . 2 1 . . . . . . . . . . . . . . . 1 1 . . . . Fabricator Hacks 11 | . . . . . . . 2 . . . . 3 . . . . 4 . . . . . 2 Network Status 2 | . . . . . . . . . . . . 1 . . . . 1 . . . . . . Load Schematic 5 | . . . . . . . 1 . . . . 1 . . . . 2 . . . . . 1 Build 4 | . . . . . . . 1 . . . . 1 . . . . 1 . . . . . 1 Repair Station Hacks 25 | . 2 6 . . . 2 . . . . . 4 . . . . 9 2 . . . . . Scan Component 13 | . 1 3 . . . 1 . . . . . 2 . . . . 5 1 . . . . . Repair 12 | . 1 3 . . . 1 . . . . . 2 . . . . 4 1 . . . . . Recycling Unit Hacks 1 | . . . . . . 1 . . . . . . . . . . . . . . . . . Retrieve Components 1 | . . . . . . 1 . . . . . . . . . . . . . . . . . Scanalyzer 16 | . . . . . . 9 7 . . . . . . . . . . . . . . . . Insert Component 7 | . . . . . . 4 3 . . . . . . . . . . . . . . . . Analyze 9 | . . . . . . 5 4 . . . . . . . . . . . . . . . . Garrison Access Hacks 2 | . . . . . . . . . . . . . . . . . 1 1 . . . . . Seal Access 2 | . . . . . . . . . . . . . . . . . 1 1 . . . . . Unauthorized Hacks 15 | . 2 2 . . . 3 2 . . . . . . . . . 3 2 1 . . . . Terminals 13 | . 2 2 . . . 2 2 . . . . . . . . . 2 2 1 . . . . Track 1 | . . 1 . . . . . . . . . . . . . . . . . . . . . Botnet 12 | . 2 1 . . . 2 2 . . . . . . . . . 2 2 1 . . . . Fabricators 1 | . . . . . . . . . . . . . . . . . 1 . . . . . . Recompile 1 | . . . . . . . . . . . . . . . . . 1 . . . . . . Repair Stations . | . . . . . . . . . . . . . . . . . . . . . . . . Recycling Units . | . . . . . . . . . . . . . . . . . . . . . . . . Scanalyzers . | . . . . . . . . . . . . . . . . . . . . . . . . Garrison Access 1 | . . . . . . 1 . . . . . . . . . . . . . . . . . Jam 1 | . . . . . . 1 . . . . . . . . . . . . . . . . . Data Cores Recovered 3 | . . . . . . 1 1 . . . . . . . . . . . 1 . . . . Used . | . . . . . . . . . . . . . . . . . . . . . . . . Hacking Detections 50 | . 5 6 . . . 8 9 . . . . 3 . . . . 8 4 3 . . 1 3 Full Trace Events 11 | . . 2 . . . 1 3 . . . . 1 . . . . 2 1 . . . . 1 Feedback Events 1 | . . . . . . . . . . . . . . . . . . 1 . . . . . Corruption 1 | . . . . . . . . . . . . . . . . . . 1 . . . . . Feedback Blocked . | . . . . . . . . . . . . . . . . . . . . . . . . Robot Schematics Acquired 9 | . 1 . . . . . . . . 3 . . . . 5 . . . . . . . . Robots Built 3 | . . . . . . . 1 . . . . 1 . . . . . . . . . . 1 Authchips . | . . . . . . . . . . . . . . . . . . . . . . . . Time 202 | . . . . . . . 81 . . . . 40 . . . . . . . . . . 81 Total Robot Build Rating 3 | . . . . . . . 1 . . . . 1 . . . . . . . . . . 1 Part Schematics Acquired 31 | . . . . . . 5 4 . . 14 . . . . 8 . . . . . . . . Parts Built 2 | . . . . . . . . . . . . . . . . . 2 . . . . . . Authchips 1 | . . . . . . . . . . . . . . . . . 1 . . . . . . Time 39 | . . . . . . . . . . . . . . . . . 39 . . . . . . Total Part Build Rating 14 | . . . . . . . . . . . . . . . . . 14 . . . . . . Parts Repaired 10 | . 1 3 . . . 1 . . . . . 2 . . . . 3 . . . . . . Time 426 | . 26 90 . . . 32 . . . . . 76 . . . . 152 50 . . . . . Parts Recycled . | . . . . . . . . . . . . . . . . . . . . . . . . Recycled Matter . | . . . . . . . . . . . . . . . . . . . . . . . . Retrieved Matter . | . . . . . . . . . . . . . . . . . . . . . . . . Retrieved Components 9 | . . . . . . 9 . . . . . . . . . . . . . . . . . Parts Scanalyzed 7 | . . . . . . 4 3 . . . . . . . . . . . . . . . . Part Schematics Acquired 7 | . . . . . . 4 3 . . . . . . . . . . . . . . . . Parts Damaged . | . . . . . . . . . . . . . . . . . . . . . . . . Bothacking | -11 -10 -9 -9 -9 -8 -8 -7 -7 -7 -7 -6 -6 -6 -6 -6 -5 -5 -4 -4 -4 -4 -4 -3 ------------ Run | Yrd Mat Mat Min Exi Min Mat Fac Low Low Zio Pro Fac Low Low Dat Pro Fac Fac Ext Cet Arc Hub Res Used RIF Installer . | . . . . . . . . . . . . . . . . . . . . . . . . Robots Hacked 11 | . . . 1 4 . . . . . 5 . . . . . . . . 1 . . . . Non-combat 4 | . . . . 3 . . . . . 1 . . . . . . . . . . . . . Combat 7 | . . . 1 1 . . . . . 4 . . . . . . . . 1 . . . . Robot Hacks Applied 11 | . . . 1 4 . . . . . 5 . . . . . . . . 1 . . . . parse_system 11 | . . . 1 4 . . . . . 5 . . . . . . . . 1 . . . . Relay Couplers Released 4 | . . . . . . . . . . . . . . . . . . . . . . . 4 Machine Destruction 4 | . . . . . . . . . . . . . . . . . . . . . . . 4 Fabnet Peak Effective % . | . . . . . . . . . . . . . . . . . . . . . . . . Robots Rewired 26 | . . . . . . . . . . . . . . 4 . . . . 22 . . . . Allies Hacked 2 | . . . . . . . . . . . . 1 . . . . . . 1 . . . . Hacks Repelled . | . . . . . . . . . . . . . . . . . . . . . . . . Allies | -11 -10 -9 -9 -9 -8 -8 -7 -7 -7 -7 -6 -6 -6 -6 -6 -5 -5 -4 -4 -4 -4 -4 -3 -------- Run | Yrd Mat Mat Min Exi Min Mat Fac Low Low Zio Pro Fac Low Low Dat Pro Fac Fac Ext Cet Arc Hub Res Total Allies 41 | . . . . . . . 1 . . 2 . 1 . 4 . . . . 27 5 . . 1 Largest Group 12 | . . . . . . . 1 . . 2 2 1 . 4 4 4 . . 12 6 3 1 1 Highest-Rated Group 639 | . . . . . . . 14 . . 34 34 14 . 91 91 91 . . 639 531 224 96 14 Highest-Rated Ally 159 | . . . . . . . 14 . . 20 20 14 . 31 31 31 . . 159 159 96 96 14 Total Orders 21 | . . . . . . . 5 . . . . 6 . . . . . 2 . . . . 8 STAY 8 | . . . . . . . 2 . . . . 3 . . . . . . . . . . 3 FOLLOW 3 | . . . . . . . 1 . . . . . . . . . . . . . . . 2 AID 7 | . . . . . . . 2 . . . . 2 . . . . . . . . . . 3 EXPLORE 1 | . . . . . . . . . . . . . . . . . . 1 . . . . . RETURN 2 | . . . . . . . . . . . . 1 . . . . . 1 . . . . . Ally Attacks 302 | . . . . . . . . . . . 7 . . 2 . 15 . . 178 60 23 17 . Total Damage 8516 | . . . . . . . . . . . 185 . . 43 . 386 . . 5177 1631 487 607 . Kills 48 | . . . . . . . . . . . 1 . . 1 . 5 . . 27 8 2 4 . Allies Corrupted 4 | . . . . . . . . . . . . . . . . . . . 4 . . . . Allies Melted . | . . . . . . . . . . . . . . . . . . . . . . . . Intel | -11 -10 -9 -9 -9 -8 -8 -7 -7 -7 -7 -6 -6 -6 -6 -6 -5 -5 -4 -4 -4 -4 -4 -3 ------- Run | Yrd Mat Mat Min Exi Min Mat Fac Low Low Zio Pro Fac Low Low Dat Pro Fac Fac Ext Cet Arc Hub Res Robot Analysis Total 4 | . 1 3 . . . . . . . . . . . . . . . . . . . . . Derelict Logs Recovered 10 | . . . 1 . . . . 1 1 . 2 . 2 1 . 2 . . . . . . . Drone Launches 4 | . . . . . . . . . . . . 1 . . . . . 3 . . . . . Drone Recoveries 4 | . . . . . . . . . . . . 1 . . . . . 3 . . . . . Exploration | -11 -10 -9 -9 -9 -8 -8 -7 -7 -7 -7 -6 -6 -6 -6 -6 -5 -5 -4 -4 -4 -4 -4 -3 ------------- Run | Yrd Mat Mat Min Exi Min Mat Fac Low Low Zio Pro Fac Low Low Dat Pro Fac Fac Ext Cet Arc Hub Res Turns Passed 45344 | 223 2148 2672 747 790 881 2679 3808 2219 2058 3516 1781 1814 1475 3120 199 2680 2818 3102 2565 744 680 987 1638 Spaces Moved 17005 | 34 1015 1255 447 537 484 786 1315 874 796 1421 675 516 558 1188 79 1050 887 855 787 248 245 272 681 Core . | . . . . . . . . . . . . . . . . . . . . . . . . Treads 12570 | . 10 . . . . 156 1315 874 796 1421 675 516 558 1188 79 1050 887 812 787 248 245 272 681 Legs 317 | 34 283 . . . . . . . . . . . . . . . . . . . . . . Wheels 4118 | . 722 1255 447 537 484 630 . . . . . . . . . . . 43 . . . . . Hover . | . . . . . . . . . . . . . . . . . . . . . . . . Flight . | . . . . . . . . . . . . . . . . . . . . . . . . Fastest Speed 120 | 120 120 140 145 145 145 210 240 240 245 245 245 243 247 242 242 242 242 175 246 160 160 160 166 Average Speed 217 | 120 149 142 145 145 145 228 240 243 245 245 245 245 247 246 242 242 246 242 249 215 197 243 166 Slowest Speed 320 | 120 320 215 145 145 145 320 240 246 247 245 245 247 247 247 242 242 247 247 250 250 240 255 166 Overloaded Moves . | . . . . . . . . . . . . . . . . . . . . . . . . Propulsion Burnouts . | . . . . . . . . . . . . . . . . . . . . . . . . Robots Hopped . | . . . . . . . . . . . . . . . . . . . . . . . . Cave-ins Triggered 2 | . . . . . . . . . . . . . . . . . . . 2 . . . . Exploration Rate (%) 66 | 4 97 86 99 79 88 65 35 94 83 86 86 15 78 98 68 94 20 30 71 59 97 34 25 Regions Visited 23 Branch Regions 15 Pre-discovered Areas 7 | . . . 1 1 . . . . . 2 . . 1 . 1 1 . . . . . . . Known Exits Taken 2 | . . . . . . . 1 . . . . . . . . . . 1 . . . . . Unknown Exits Taken 21 | 1 1 1 1 1 1 1 . 1 1 1 1 1 1 1 1 1 1 . 1 1 1 1 . Scrap Searched 24 | . . . 1 . 1 . . 2 1 2 3 . 2 9 . 3 . . . . . . . Spaces Dug 41 | . 2 2 6 . . . . . . . . 1 . . . . 4 . 24 . . 2 . Terrain Destroyed 863 | . 7 2 28 . 28 18 41 9 1 . 4 62 . 2 . 4 31 204 195 11 19 171 26 Melee 6 | . . . . . . . . . . . . 1 . . . . 2 . 1 . . 2 . Projectile 315 | . 7 2 . . . . 2 . 1 . 4 3 . 2 . 4 7 55 153 11 19 21 24 AOE 535 | . . . 28 . 28 18 39 9 . . . 58 . . . . 22 146 39 . . 148 . Terrain Rammed . | . . . . . . . . . . . . . . . . . . . . . . . . Walls Destroyed . | . . . . . . . . . . . . . . . . . . . . . . . . Machines Disabled . | . . . . . . . . . . . . . . . . . . . . . . . . Actions | -11 -10 -9 -9 -9 -8 -8 -7 -7 -7 -7 -6 -6 -6 -6 -6 -5 -5 -4 -4 -4 -4 -4 -3 --------- Run | Yrd Mat Mat Min Exi Min Mat Fac Low Low Zio Pro Fac Low Low Dat Pro Fac Fac Ext Cet Arc Hub Res Total 23045 | 188 1496 1955 505 546 640 1351 1806 933 849 1452 774 920 640 1323 88 1135 1392 1543 1170 440 384 516 999 Wait 3836 | 135 358 553 30 . 143 314 313 23 8 8 80 287 54 34 2 37 391 341 149 143 111 169 153 Move 16982 | 33 1014 1254 446 536 483 785 1314 873 795 1420 674 515 557 1187 78 1049 886 854 786 247 244 271 681 Hop . | . . . . . . . . . . . . . . . . . . . . . . . . Pick Up 207 | 1 14 22 1 1 . 30 22 4 7 6 1 8 6 6 . 2 13 23 14 13 3 4 6 Fast Attach 155 | 1 3 11 . . . 8 9 2 . 2 . 12 2 7 4 7 4 21 11 7 1 13 30 Attach 124 | . 7 5 . . . 27 11 4 7 2 . 6 4 3 . . 3 17 9 4 1 1 13 Detach 20 | . 2 . . . . 3 2 . . . . 4 . . . . . 5 . 1 . 1 2 Swap 261 | 1 12 9 7 3 2 10 20 2 3 3 2 14 6 12 . 10 30 68 21 2 1 9 14 Drop 235 | . 10 18 1 1 . 14 21 4 1 4 1 12 4 8 4 9 11 35 13 15 2 15 32 Fire 1063 | 17 76 83 19 . 12 160 92 21 26 1 16 61 . 20 . 21 47 177 92 8 21 25 68 Melee 76 | . . . 1 5 . . . . . 6 . 1 7 1 . . 7 2 42 . . 4 . Ram . | . . . . . . . . . . . . . . . . . . . . . . . . Kick . | . . . . . . . . . . . . . . . . . . . . . . . . Crush 6 | . . . . . . . . . 2 . . . . . . . . . . . . 4 . Escape Stasis 8 | . . . . . . . 2 . . . . . . . . . . . 6 . . . . Rewire 72 | . . . . . . . . . . . . . . 45 . . . . 27 . . . . Trap . | . . . . . . . . . . . . . . . . . . . . . . . . Miscellaneous . | . . . . . . . . . . . . . . . . . . . . . . . . Route ------- -11/Scrapyard -10/Materials (discovered 4 exits: *Mat x3 / [*Min]) -9/Materials (discovered 5 exits: *Mat x3 / [*Min x2]) -9/Mines (discovered 4 exits: *Mat x2 / *Exi / [*Zio]) -9/Exiles (discovered 2 exits: [*Min x2]) -8/Mines -8/Materials (discovered 3 exits: *Fac x3) -7/Factory (discovered 4 exits: *Fac / *Sto / *Low x2) -7/Lower Caves -7/Lower Caves (discovered 2 exits: *Fac / [*Zio]) -7/Zion -6/Proximity Caves -6/Factory -6/Lower Caves -6/Lower Caves (discovered 2 exits: *Fac / *Dat) -6/Data Miner -5/Proximity Caves -5/Factory -4/Factory (discovered 2 exits: *Res / *Ext) -4/Extension (discovered 2 exits: *Res / *Cet) -4/Cetus (discovered 2 exits: *Res / *Arc) -4/Archives (discovered 3 exits: *Res / *Hub x2) -4/Hub_04(d) -3/Research (discovered 2 exits: *Res x2) History --------- Turn | Location | Event 16 | -11/Scrapyard | Discovered new exit (range 2) 224 | -11/Scrapyard | Entered Materials 308 | -10/Materials | Build established: Mutant 631 | -10/Materials | Discovered new exit (range 15) 816 | -10/Materials | Discovered new exit (range 16) 1009 | -10/Materials | Repaired Assault Rifle 1212 | -10/Materials | Discovered new exit (range 15) 1367 | -10/Materials | Central database locked down 1616 | -10/Materials | Discovered new exit (range 14) 2149 | -10/Materials | Core integrity fell below 50% 2372 | -10/Materials | Entered another Materials area 2372 | -9/Materials | Evolved 2 slots: Utility x1, Weapon x1 2860 | -9/Materials | Discovered new exit (range 6) 2944 | -9/Materials | Build established: Scavenger-Tank 3623 | -9/Materials | Lost 3 parts (1n1u1w) 3719 | -9/Materials | Discovered new exit (range 6) 3851 | -9/Materials | Discovered new exit (range 12) 3906 | -9/Materials | Build established: Tank 4215 | -9/Materials | Discovered new exit (range 4) 4501 | -9/Materials | Discovered new exit (range 12) 4904 | -9/Materials | Repaired Sensor Array 4937 | -9/Materials | Repaired Hvy. Assault Rifle 4971 | -9/Materials | Repaired Hvy. Assault Rifle 5044 | -9/Materials | Entered Mines 5138 | -9/Mines | A Derelict revealed a hidden shortcut to a safe place 5268 | -9/Mines | Discovered new exit (range 7) 5396 | -9/Mines | YI-UF0 nonchalantly dropped a Grenade Launcher on the ground 5448 | -9/Mines | Murdered YI-UF0 5503 | -9/Mines | Discovered new exit (range 13) 5774 | -9/Mines | Learned location of Storage (-7) 5784 | -9/Mines | Deemed a non-threat by the Exiles lab entrance 5785 | -9/Mines | Discovered new exit (range 5) 5791 | -9/Mines | Entered Exiles 5816 | -9/Exiles | Discovered new exit (range 15) 5858 | -9/Exiles | Met 8R-AWN 5879 | -9/Exiles | Met EX-HEX 5948 | -9/Exiles | Met EX-BIN 6002 | -9/Exiles | Met EX-DEC 6065 | -9/Exiles | Visited The Gauntlet 6156 | -9/Exiles | Build established: Mutant 6288 | -9/Exiles | Discovered new exit (range 14) 6528 | -9/Exiles | Learned location of Zion (-7) 6581 | -9/Exiles | Entered Mines 6780 | -8/Mines | Build established: Tank 7148 | -8/Mines | Discovered new exit (range 8) 7462 | -8/Mines | Entered Materials 7462 | -8/Materials | Evolved 2 slots: Propulsion x1, Utility x1 7617 | -8/Materials | Lost 3 parts (1n1u1w) 7868 | -8/Materials | Build established: Scavenger-Tank 7993 | -8/Materials | Discovered new exit (range 6) 8151 | -8/Materials | Destroyed 7 combat bots 8156 | -8/Materials | Lost 4 parts (1p2n1w) 8382 | -8/Materials | Build established: Tank 9020 | -8/Materials | Discovered new exit (range 13) 9375 | -8/Materials | Repaired Hvy. Assault Rifle 9707 | -8/Materials | Core integrity fell below 50% 9740 | -8/Materials | Core integrity fell below 20% 9807 | -8/Materials | Lost 11 parts (1p3n2u5w) 9905 | -8/Materials | Discovered new exit (range 11) 10133 | -8/Materials | Build established: Scavenger-Tank 10141 | -8/Materials | Entered Factory 10141 | -7/Factory | Evolved 2 slots: Propulsion x1, Utility x1 10489 | -7/Factory | Build established: Scavenger-Gunner 11160 | -7/Factory | Garrison activated, responded to threat 11195 | -7/Factory | Garrison activated, responded to threat 11376 | -7/Factory | Lost 3 parts (1u2w) 11648 | -7/Factory | Build established: Scavenger-Tank 12067 | -7/Factory | Build established: Tank 12196 | -7/Factory | Fabricated M-13 Machinist? 12360 | -7/Factory | Identified exit to Storage 12360 | -7/Factory | Identified exit to Lower Caves 13584 | -7/Factory | Discovered new exit (range 16) 13949 | -7/Factory | Entered Lower Caves 14433 | -7/Lower Caves | Encountered a Warlord checkpoint 14587 | -7/Lower Caves | Spotted B-75 Beast 14718 | -7/Lower Caves | Destroyed B-75 Beast 15059 | -7/Lower Caves | Discovered new exit (range 15) 16168 | -7/Lower Caves | Entered another Lower Caves area 16178 | -7/Lower Caves | Attracted the attention of an 0b10 outpost 16250 | -7/Lower Caves | Lost 5 parts (2n1u2w) 16267 | -7/Lower Caves | Destroyed 8 combat bots 16275 | -7/Lower Caves | Encountered a Warlord checkpoint 16286 | -7/Lower Caves | Discovered new exit (range 16) 17431 | -7/Lower Caves | Build established: Gunner 17934 | -7/Lower Caves | Discovered new exit (range 9) 18054 | -7/Lower Caves | Learned Factory trap positions 18226 | -7/Lower Caves | Entered Zion 18349 | -7/Zion | Discovered new exit (range 12) 18432 | -7/Zion | System corruption cleaned by Quarantine Array 18809 | -7/Zion | Found Prototype Device 19272 | -7/Zion | Learned location of Data Miner (-6) 19286 | -7/Zion | Learned location of Recycling (-7) 19424 | -7/Zion | Found CR-A16's Pointy Stick 19699 | -7/Zion | Given the Hacking Drone Bay 19699 | -7/Zion | Found Prototype Device 19860 | -7/Zion | Given A8's code to call for help 20428 | -7/Zion | Build established: Mutant 21271 | -7/Zion | Met Imprinter 21512 | -7/Zion | Gained Derelict followers 21742 | -7/Zion | Entered Proximity Caves 21742 | -6/Proximity Caves | Accompanied by 2 allies 21781 | -6/Proximity Caves | Build established: Gunner 21872 | -6/Proximity Caves | Spotter reported a threat 22128 | -6/Proximity Caves | Attracted the attention of an 0b10 checkpoint 22131 | -6/Proximity Caves | Spotter reported a threat 22618 | -6/Proximity Caves | Learned Factory trap positions 22934 | -6/Proximity Caves | Learned Factory garrison access intel 23451 | -6/Proximity Caves | Discovered new exit (range 8) 23523 | -6/Proximity Caves | Entered Factory 23523 | -6/Factory | Evolved 2 slots: Power x1, Weapon x1 23524 | -6/Factory | Loaded intel: 110 trap records 23525 | -6/Factory | Loaded intel: 4 garrison access locations 23856 | -6/Factory | Identified Hacking Drone Bay 23992 | -6/Factory | Garrison activated, responded to threat 24014 | -6/Factory | Build established: Tank 24098 | -6/Factory | Garrison activated, responded to threat 24264 | -6/Factory | Found Unknown Device 24264 | -6/Factory | Identified Launcher Loader 24630 | -6/Factory | Repaired Arm. Treads 24673 | -6/Factory | Repaired Arm. Treads 24792 | -6/Factory | Fabricated M-13 Machinist (x1) 25013 | -6/Factory | Cargo convoy interrupted 25073 | -6/Factory | Destroyed 12 combat bots 25099 | -6/Factory | Found Prototype Launcher 25099 | -6/Factory | Identified Hellfire Missile Launcher 25110 | -6/Factory | Destroyed 7 combat bots 25139 | -6/Factory | Garrison activated, responded to threat 25323 | -6/Factory | Discovered new exit (range 9) 25337 | -6/Factory | Entered Lower Caves 25361 | -6/Lower Caves | Spotted B-75 Beast 25580 | -6/Lower Caves | Revealed the true nature of CR-A16's Pointy Stick 25586 | -6/Lower Caves | Destroyed B-75 Beast 25902 | -6/Lower Caves | Build established: Scavenger-Tank 25924 | -6/Lower Caves | Found DCF Scrap (10 items) 26311 | -6/Lower Caves | Encountered a Warlord checkpoint 26456 | -6/Lower Caves | Discovered new exit (range 13) 26589 | -6/Lower Caves | Learned 12 Factory zone layouts 26812 | -6/Lower Caves | Entered another Lower Caves area 26959 | -6/Lower Caves | Discovered new exit (range 7) 28257 | -6/Lower Caves | Learned Factory garrison access intel 28442 | -6/Lower Caves | Discovered new exit (range 8) 28722 | -6/Lower Caves | Attracted the attention of an 0b10 checkpoint 29438 | -6/Lower Caves | Attacked by a delusional Derelict stockpiling Unaware 29896 | -6/Lower Caves | Attacked by a delusional Derelict stockpiling parts 29932 | -6/Lower Caves | Entered Data Miner 29932 | -6/Data Miner | Accompanied by 4 allies 29932 | -6/Data Miner | Discovered new exit (range 6) 29983 | -6/Data Miner | Met Data Miner 30029 | -6/Data Miner | Learned location of Section 7 (-2) 30029 | -6/Data Miner | Acquired the access code to Warlord's prototype stash 30063 | -6/Data Miner | Received God Mode back door access code from Data Miner 30131 | -6/Data Miner | Entered Proximity Caves 30131 | -5/Proximity Caves | Accompanied by 4 allies 30750 | -5/Proximity Caves | Spotted B-75 Beast 30777 | -5/Proximity Caves | Allies destroyed B-75 Beast 31249 | -5/Proximity Caves | Learned location of Warlord (-4) 31670 | -5/Proximity Caves | Learned Factory stockpile data 32621 | -5/Proximity Caves | Discovered new exit (range 10) 32804 | -5/Proximity Caves | System corruption reached 10% 32811 | -5/Proximity Caves | Entered Factory 32811 | -5/Factory | Evolved 2 slots: Utility x2 32813 | -5/Factory | Loaded intel: 80 trap records 32815 | -5/Factory | Loaded intel: 4 garrison access locations 33004 | -5/Factory | Spotted B-75 Beast 33022 | -5/Factory | Destroyed B-75 Beast 34106 | -5/Factory | Fabricated Adv. Thermal Shield (x2) 34755 | -5/Factory | Repaired Arm. Treads 34794 | -5/Factory | Repaired Arm. Treads 34833 | -5/Factory | Repaired Arm. Treads 35241 | -5/Factory | Discovered new exit (range 5) 35511 | -5/Factory | First assault squad dispatched 35629 | -5/Factory | Entered another Factory area 35629 | -4/Factory | Evolved 2 slots: Utility x1, Weapon x1 35630 | -4/Factory | Identified exit to Extension 35937 | -4/Factory | Lost 4 parts (2u2w) 36396 | -4/Factory | Spotted B-86 Titan 36455 | -4/Factory | Destroyed B-86 Titan 37168 | -4/Factory | First assault squad dispatched 38438 | -4/Factory | System corruption reached 10% 38445 | -4/Factory | Discovered new exit (range 14) 38524 | -4/Factory | Destroyed 13 combat bots 38731 | -4/Factory | Entered Extension 39185 | -4/Extension | Build established: Scavenger-Gunner 39608 | -4/Extension | Build established: Gunner 39670 | -4/Extension | Rescued a captive Derelict 39981 | -4/Extension | First assault squad dispatched 40041 | -4/Extension | Build established: Commander-Gunner 40151 | -4/Extension | Lost 4 allies 40242 | -4/Extension | Crushed by falling debris 40345 | -4/Extension | Spotted B-86 Titan 40368 | -4/Extension | Lost 5 allies 40379 | -4/Extension | Destroyed 23 combat bots 40402 | -4/Extension | Rescued A7 40414 | -4/Extension | Spotted B-86 Titan 40441 | -4/Extension | Allies destroyed B-86 Titan 40470 | -4/Extension | Lost 5 parts (1p1n2u1w) 40487 | -4/Extension | System corruption reached 30% 40831 | -4/Extension | Build established: Scavenger-Tank 40956 | -4/Extension | Disrupted transfer network 41054 | -4/Extension | Destroyed 9 combat bots 41085 | -4/Extension | Rescued a captive Derelict 41085 | -4/Extension | Rescued a captive Derelict 41106 | -4/Extension | P-70 Sage assimilated allied 17-4GW(b) 41116 | -4/Extension | Crushed by falling debris 41154 | -4/Extension | Lost 15 allies 41158 | -4/Extension | Rescued a captive Derelict 41253 | -4/Extension | High security lockdown imminent 41278 | -4/Extension | Discovered new exit (range 10) 41281 | -4/Extension | Discovered new exit (range 6) 41296 | -4/Extension | Entered Cetus 41296 | -4/Cetus | Accompanied by 2 allies (A7) 41301 | -4/Cetus | Acquired a Cetus Manufacturing Module code from A7 41324 | -4/Cetus | Spotted Cetus Guard 41324 | -4/Cetus | Spotted Cetus Guard 41324 | -4/Cetus | Allies destroyed Cetus Guard 41325 | -4/Cetus | Spotted Cetus Guard 41326 | -4/Cetus | Spotted Cetus Guard 41327 | -4/Cetus | Allies destroyed Cetus Guard 41334 | -4/Cetus | Allies destroyed Cetus Guard 41336 | -4/Cetus | Allies destroyed Cetus Guard 41360 | -4/Cetus | Destroyed A7 41361 | -4/Cetus | Extracted ID and sensor layout for unrecognized location from A7's data core 41492 | -4/Cetus | Started Cetus Manufacturing Module 41517 | -4/Cetus | Manufactured an Enhanced Grunt 41542 | -4/Cetus | Manufactured an Enhanced Grunt 41567 | -4/Cetus | Manufactured an Enhanced Grunt 41592 | -4/Cetus | Manufactured an Enhanced Grunt 41617 | -4/Cetus | Manufactured an Enhanced Grunt 41776 | -4/Cetus | Discovered new exit (range 16) 41816 | -4/Cetus | Spotted Cetus Guard 41816 | -4/Cetus | Spotted Cetus Guard 41818 | -4/Cetus | Spotted Cetus Guard 41819 | -4/Cetus | Spotted Cetus Guard 41830 | -4/Cetus | Core integrity fell below 50% 41840 | -4/Cetus | Allies destroyed Cetus Guard 41842 | -4/Cetus | Allies destroyed Cetus Guard 41845 | -4/Cetus | Destroyed Cetus Guard 41849 | -4/Cetus | Allies destroyed Cetus Guard 41869 | -4/Cetus | Lost 3 allies 41876 | -4/Cetus | Discovered new exit (range 15) 41896 | -4/Cetus | Met Revision 17 41947 | -4/Cetus | Found Prototype Device 41947 | -4/Cetus | Identified Exp. Thermal Shield 41979 | -4/Cetus | Found Exp. Thermal Shield 42040 | -4/Cetus | Entered Archives 42040 | -4/Archives | Accompanied by 3 allies 42145 | -4/Archives | Unable to access archive contents 42195 | -4/Archives | Unable to access archive contents 42378 | -4/Archives | Discovered new exit (range 14) 42499 | -4/Archives | Discovered new exit (range 15) 42625 | -4/Archives | Discovered new exit (range 16) 42720 | -4/Archives | Entered Hub_04(d) 42720 | -4/Hub_04(d) | Accompanied by 1 ally 43022 | -4/Hub_04(d) | Spotted B-86 Titan 43112 | -4/Hub_04(d) | Destroyed B-86 Titan 43409 | -4/Hub_04(d) | Discovered new exit (range 15) 43576 | -4/Hub_04(d) | Network Hub disabled 43707 | -4/Hub_04(d) | Entered Research 43707 | -3/Research | Evolved 2 slots: Propulsion x2 43800 | -3/Research | Fabricated M-13 Machinist (x1) 43919 | -3/Research | Revision forces began assault on 0b10 43920 | -3/Research | Met up with Revision 17++ 44238 | -3/Research | Discovered new exit (range 16) 44264 | -3/Research | Identified exit to Research 44419 | -3/Research | Research terminal network offline 44782 | -3/Research | Spotted Striker 44806 | -3/Research | Destroyed Striker 44827 | -3/Research | Lost 4 allies 44838 | -3/Research | Destroyed 7 combat bots 45055 | -3/Research | Discovered exit to Research (range 8) 45076 | -3/Research | Spotted Striker 45090 | -3/Research | Destroyed Striker 45126 | -3/Research | Destroyed 7 combat bots 45276 | -3/Research | Spotted Striker 45278 | -3/Research | Spotted Executioner 45294 | -3/Research | Destroyed Executioner 45328 | -3/Research | Destroyed Striker 45345 | -3/Research | Self-destructed Last Messages --------------- 45335_ Railgun destroyed. 45336_ Quantum Reactor destroyed. 45337_ Slug penetrates G-67 Veteran. 45337_ G-67 Veteran suffers critical hit (Destroy). 45337_ Destroyed Adv. Heat Sink. 45337_ Slug penetrates G-67 Veteran. 45337_ G-67 Veteran destroyed. 45337_ Switching to secondary target: G-67 Veteran. 45337_ Slug penetrates G-67 Veteran. 45337_ G-67 Veteran suffers critical hit (Destroy). 45337_ Destroyed Lgt. Antimatter Reactor. 45337_ Slug penetrates G-67 Veteran. 45341_ G-67 Veteran destroyed. 45341_ Switching to secondary target: G-67 Veteran. 45341_ Slug penetrates G-67 Veteran. 45341_ G-67 Veteran suffers critical hit (Destroy). 45341_ Destroyed Lgt. Antimatter Reactor. 45341_ Slug penetrates G-67 Veteran. 45341_ G-67 Veteran destroyed. 45344_ 3=XMZLQ3E0%O1QHF|4BA> M4 Map ----- +----------------------------------------------------+ | ###########??????????????????????????????????? | | # #??????????????????????????????????? | | # #??????????????????????????????????? | | # #??????????????????????????????????? | | # "F "" *#??????????????????????????????????? | | + """"" #??????????????????????????????????? | | # """"" #??????????????????????????????????? | | # #??????????????????????????????????? | | # #??????????????????????????????????? | | ###########??????????###########?????????????? | | #??????????????###???# #?????????????? | | ################"##### !#?????????????? | | =* # #?????????????? | | %!*!=%= # #?????????????? | | " !%[!*=!! # #?????????????? | | "%" %*=%===[! # ???#??????????? | | ##########=]!%### # ????%##?????????? | | # ? #%*!!### # ?????!!!##????????? | | # #=/!/[ # ###+#######=%#=#????????? | | # "" +!=%!### !%**%%#?????????? | | # "G! #[==/#?# =%!*[![#?????????? | | # " #=%! #?# *%[=%=! #?????????? | | # !!! # [ ### *%*%[ "#?????????? | | # ### # " ########## % ! "#?????????? | | # # ### # ###* % # =; "#?????????? | | # # # # # # = # % @%; #?????????? | | # # [[[ # =+ "#?????????? | | # # *%=%!# "" "#?????????? | | # # % =![*# """ ] =% "#?????????? | | # [ ! ; """ % # ?????? | | # # # ####;# "" ????? | | !# = ; # % g ????? | | #### ] ????? | | #######;; # ?????? | | ##????### ## " ?????? | | ###??????# ## T??????? | | # + ???????%? "??????? | | # % ###??????? ?# = " ??????? | | # " ##???????? ? !%!%"""" ???????? | | # "" ##???????#? %[[*""""![ # ???????? | | # " ###?????????]=% ""*"*% ????????? | | # ###?????????[%]% %????% ????????? | | ### ##??????????# [=%]=???????????????? | | #######+ ###???????????? %[!=%???????????????? | | ! # ########????????????![%%##???????????????? | | != # #?? #???????????? ===#????????????????? | | = ] # #? #???????????? =*??????????????????? | | = # #? #?????????????????????????????????? | | ! # # #?????????????????????????????????? | | ####+## # #?????????????????????????????????? | +----------------------------------------------------+ Best States ------------- Heat Dissipation 93 Energy Generation 45 Energy Capacity 600 Matter Stores 300 Matter Capacity 300 Sight Range 16 Robot Scan Range 16 Terrain Scan Density 10 Jamming Range 16 Armor Coverage 600 Resistance: KI 25 Resistance: TH 30 Utility Shielding 33 Point Defense Rating 160 Weapon Cycling 30 Phase Shifting 10 Evasion (%) 55 Targeting Accuracy 6 Core Analysis 6 Recoil Reduction 6 Kinecelleration 40 Defensive Hacking 11 Authchip Count 1 Item Schematics ----------------- Imp. Utility Shielding | -8/Materials | Hacked Arm. Treads | -8/Materials | Scanalyzed Weapon Cycler | -8/Materials | Scanalyzed Transmission Jammer | -8/Materials | Scanalyzed Datajack | -8/Materials | Scanalyzed Force Field | -7/Factory | Hacked Imp. Shield Generator | -7/Factory | Scanalyzed Imp. Medium Armor Plating | -7/Factory | Scanalyzed Minigun | -7/Factory | Scanalyzed Powered Hammer | -7/Zion | Archive Magnetic Acceleration Cannon | -7/Zion | Archive Flexi-carbon Leg | -7/Zion | Archive Great Axe | -7/Zion | Archive Focal Shield | -7/Zion | Archive Hvy. Shock Bomb Launcher | -7/Zion | Archive Imp. Shock Absorption System | -7/Zion | Archive Hrd. Heavy Armor Plating | -7/Zion | Archive Power Amplifier | -7/Zion | Archive Thermic Laser | -7/Zion | Archive Imp. Titanium Leg | -7/Zion | Archive Hvy. Ion Cannon | -7/Zion | Archive Hvy. Machine Gun | -7/Zion | Archive Hvy. Mass Driver | -7/Zion | Archive Combat Drone Bay | -6/Data Miner | Free Lgt. Regenerative Plating | -6/Data Miner | Free Enh. Flexi-carbon Leg | -6/Data Miner | Free Prc. Matter Filter | -6/Data Miner | Free Cld. Plasma Rifle | -6/Data Miner | Free Adv. Medium Treads | -6/Data Miner | Free Adv. Thermal Shield | -6/Data Miner | Free Matter Neutralizer | -6/Data Miner | Free Robot Schematics ------------------ M-13 Machinist | -10/Materials | Hacked L-41 Fighter | -7/Zion | Archive R-06 Scavenger | -7/Zion | Archive W-25 Informer | -7/Zion | Archive B-48 Gladiator | -6/Data Miner | Free S-27 Virus | -6/Data Miner | Free E-15 Imp | -6/Data Miner | Free H-66 Slayer | -6/Data Miner | Free O-32 Director | -6/Data Miner | Free Fabricated ------------ M-13 Machinist | x1 | -7/Factory M-13 Machinist | x1 | -6/Factory Adv. Thermal Shield | x2 | -5/Factory | Authchip M-13 Machinist | x1 | -3/Research Alien Tech Used ----------------- None Achievements -------------- Giant Slayer No Explosion For You Challenges ------------ None Game ------ Seed AssemblyFortressMount Manual? 0 Play Time 04:36:25 Cumulative 218.7 hours Start 2024.08.25 @ 12:30:31 End 2024.08.30 @ 08:26:29 Sessions 11 Manual Loads 0 Difficulty Rogue Special Mode None Game No. 139 Rogue 139 Adventurer 0 Explorer 0 Win Type - Total 2 Types 1/0/0/1/0/0/0/0/0 Lore% 71 Gallery% 65 Achievement% 60 Wizard Run 0 Options --------- Layout 0 ASCII 0 Keyboard 0 Movement Mouse Keybinds 0 Fullscreen 1 Font 18/SmallcapsGlow Map View 76x50 Zoom Use 0% Tactical HUD 1 Map Filters NONE Filters NONE Steam 1 RUN: 4f432d28-fd3b-4d39-b204-cc81bc328293